lending/lending_fUSD_20250121
["ID","MTS","AMOUNT","RATE_DAILY","PERIOD"]
[349881493,1737475877038,-151.0,0.00021095,2]
[349881494,1737475877048,-500.0,0.00021095,2]
[349881495,1737475877060,-667.353456,0.00021095,2]
[349881496,1737475877071,-500.0,0.00021095,2]
[349881497,1737475877082,-500.0,0.00021095,2]
[349881498,1737475877093,-500.0,0.00021095,2]
[349881499,1737475877103,-500.0,0.00021095,2]
[349881500,1737475877114,-500.0,0.00021095,2]
[349881501,1737475877125,-500.0,0.00021095,2]
[349881502,1737475877135,-500.0,0.00021095,2]
[349881503,1737475877146,-500.0,0.00021095,2]
[349881504,1737475877156,-500.0,0.00021095,2]
[349881505,1737475877166,-500.0,0.00021095,2]
[349881506,1737475877175,-500.0,0.00021095,2]
[349881507,1737475877184,-500.0,0.00021095,2]
[349881508,1737475877194,-500.0,0.00021095,2]
[349881509,1737475877204,-500.0,0.00021095,2]
[349881510,1737475877213,-500.0,0.00021095,2]
[349881511,1737475877223,-500.0,0.00021095,2]
[349881512,1737475877232,-610.88,0.00021095,2]
[349881513,1737475877242,-500.0,0.00021095,2]
[349881514,1737475877251,-737.179408,0.00021095,2]
[349881515,1737475877261,-500.0,0.00021095,2]
[349881516,1737475877271,-500.0,0.00021095,2]
[349881517,1737475877283,-565.45,0.00021095,2]
[349881518,1737475877293,-500.0,0.00021095,2]
[349881519,1737475877303,-500.0,0.00021095,2]
[349881520,1737475877313,-560.25,0.00021095,2]
[349881521,1737475877322,-500.0,0.00021095,2]
[349881522,1737475877332,-500.0,0.00021095,2]
[349881523,1737475877342,-500.0,0.00021095,2]
[349881524,1737475877351,-500.0,0.00021095,2]
[349881525,1737475877362,-500.0,0.00021095,2]
[349881526,1737475877371,-500.0,0.00021095,2]
[349881527,1737475877380,-500.0,0.00021095,2]
[349881528,1737475877391,-575.37,0.00021095,2]
[349881529,1737475877401,-500.0,0.00021095,2]
[349881530,1737475877411,-500.0,0.00021095,2]
[349881531,1737475877420,-500.0,0.00021095,2]
[349881532,1737475877430,-500.0,0.00021095,2]
[349881533,1737475877440,-500.0,0.00021095,2]
[349881534,1737475877450,-599.65,0.00021095,2]
[349881535,1737475877460,-621.55,0.00021095,2]
[349881536,1737475877470,-830.18,0.00021095,2]
[349881537,1737475877480,-500.0,0.00021095,2]
[349881538,1737475877490,-500.0,0.00021095,2]
[349881539,1737475877500,-151.0,0.00021095,2]
[349881540,1737475877510,-558.91659685,0.00021095,2]
[349881541,1737475877521,-500.0,0.00021095,2]
[349881542,1737475877533,-154.110328,0.00021095,2]
[349881543,1737475877542,-500.0,0.00021095,2]
[349881544,1737475877552,-545.76,0.00021095,2]
[349881545,1737475877562,-500.0,0.00021095,2]
[349881546,1737475877571,-500.0,0.00021095,2]
[349881547,1737475877581,-500.0,0.00021095,2]
[349881548,1737475877591,-500.0,0.00021095,2]
[349881549,1737475877600,-500.0,0.00021095,2]
[349881550,1737475877609,-500.0,0.00021095,2]
[349881551,1737475877618,-500.0,0.00021095,2]
[349881552,1737475877628,-500.0,0.00021095,2]
[349881553,1737475877637,-500.0,0.00021095,2]
[349881554,1737475877646,-580.64,0.00021095,2]
[349881555,1737475877656,-500.0,0.00021095,2]
[349881556,1737475877665,-500.0,0.00021095,2]
[349881557,1737475877674,-490.744439,0.00021095,2]
[349881558,1737475877684,-500.0,0.00021095,2]
[349881559,1737475877694,-500.0,0.00021095,2]
[349881560,1737475877705,-500.0,0.00021095,2]
[349881561,1737475877715,-500.0,0.00021095,2]
[349881562,1737475877726,-699.020223,0.00021095,2]
[349881563,1737475877736,-500.0,0.00021095,2]
[349881564,1737475877746,-500.0,0.00021095,2]
[349881565,1737475877755,-699.020223,0.00021095,2]
[349881566,1737475877767,-157.088995,0.00021095,2]
[349881567,1737475877780,-500.0,0.00021095,2]
[349881568,1737475877789,-500.0,0.00021095,2]
[349881569,1737475877799,-500.0,0.00021095,2]
[349881570,1737475877809,-500.0,0.00021095,2]
[349881571,1737475877820,-500.0,0.00021095,2]
[349881572,1737475877830,-475.17988628,0.00021095,2]
[349881573,1737475877840,-500.0,0.00021095,2]
[349881574,1737475877850,-500.0,0.00021095,2]
[349881575,1737475877861,-500.0,0.00021095,2]
[349881576,1737475877870,-151.0,0.00021095,2]
[349881577,1737475877880,-164.392577,0.00021095,2]
[349881578,1737475877891,-805.15,0.00021095,2]
[349881579,1737475877900,-500.0,0.00021095,2]
[349881580,1737475877910,-164.392577,0.00021095,2]
[349881581,1737475877920,-500.0,0.00021095,2]
[349881582,1737475877930,-341.496494,0.00021095,2]
[349881583,1737475877940,-341.496494,0.00021095,2]
[349881584,1737475877949,-500.0,0.00021095,2]
[349881585,1737475877958,-500.0,0.00021095,2]
[349881586,1737475877968,-500.0,0.00021095,2]
[349881587,1737475877977,-500.0,0.00021095,2]
[349881588,1737475877987,-534.136556,0.00021095,2]
[349881589,1737475877997,-618.31,0.00021095,2]
[349881590,1737475878008,-520.16,0.00021095,2]
[349881591,1737475878018,-1629.69,0.00021095,2]
[349881592,1737475878031,-500.0,0.00021095,2]
[349881593,1737475878041,-534.136556,0.00021095,2]
[349881594,1737475878051,-151.0,0.00021095,2]
[349881595,1737475878061,-151.0,0.00021095,2]
[349881596,1737475878071,-500.0,0.00021095,2]
[349881597,1737475878081,-694.56,0.00021095,2]
[349881598,1737475878092,-500.0,0.00021095,2]
[349881599,1737475878102,-151.0,0.00021095,2]
[349881600,1737475878112,-500.0,0.00021095,2]
[349881601,1737475878123,-1263.31,0.00021095,2]
[349881602,1737475878133,-500.0,0.00021095,2]
[349881603,1737475878145,-500.0,0.00021095,2]
[349881604,1737475878155,-500.0,0.00021095,2]
[349881605,1737475878165,-2691.07,0.00021095,2]
[349881606,1737475878175,-155.184809,0.00021095,2]
[349881607,1737475878184,-645.13,0.00021095,2]
[349881608,1737475878194,-151.0,0.00021095,2]
[349881609,1737475878346,-890.72,0.00021095,2]
[349881610,1737475878356,-2253.63,0.00021095,2]
[349881611,1737475878367,-500.0,0.00021095,2]
[349881612,1737475878377,-500.0,0.00021095,2]
[349881613,1737475878390,-1452.22,0.00021095,2]
[349881614,1737475878401,-1116.63,0.00021095,2]
[349881615,1737475878411,-547.79,0.00021095,2]
[349881616,1737475878421,-915.26,0.00021095,2]
[349881617,1737475878431,-3864.5,0.00021095,2]
[349881618,1737475878442,-807.11,0.00021095,2]
[349881619,1737475878452,-2795.23,0.00021095,2]
[349881620,1737475878463,-2646.224274,0.00021095,2]
[349881621,1737475878474,-657.52,0.00021095,2]
[349881622,1737475878484,-500.0,0.00021095,2]
[349881623,1737475878494,-2646.224274,0.00021095,2]
[349881624,1737475878504,-1087.67,0.00021095,2]
[349881625,1737475878514,-1302.3,0.00021095,2]
[349881626,1737475878524,-1232.01,0.00021095,2]
[349881627,1737475878537,-500.0,0.00021095,2]
[349881628,1737475878547,-1499.37,0.00021095,2]
[349881629,1737475878558,-1231.63,0.00021095,2]
[349881630,1737475878568,-500.0,0.00021095,2]
[349881631,1737475878578,-1601.77,0.00021095,2]
[349881632,1737475878588,-646.72,0.00021095,2]
[349881633,1737475878599,-967.09,0.00021095,2]
[349881634,1737475878609,-500.0,0.00021095,2]
[349881635,1737475878620,-2471.72,0.00021095,2]
[349881636,1737475878630,-762.34,0.00021095,2]
[349881637,1737475878640,-1839.77,0.00021095,2]
[349881638,1737475878650,-1125.91,0.00021095,2]
[349881639,1737475878660,-226.948823,0.00021095,2]
[349881640,1737475878671,-940.03,0.00021095,2]
[349881641,1737475878681,-2525.34,0.00021095,2]
[349881642,1737475878691,-226.948823,0.00021095,2]
[349881643,1737475878700,-1709.51,0.00021095,2]
[349881644,1737475878710,-151.0,0.00021095,2]
[349881645,1737475878719,-800.12,0.00021095,2]
[349881646,1737475878729,-1062.88,0.00021095,2]
[349881647,1737475878739,-739.24,0.00021095,2]
[349881648,1737475878748,-344.602991,0.00021095,2]
[349881649,1737475878759,-816.14,0.00021095,2]
[349881650,1737475878771,-3463.05,0.00021095,2]
[349881651,1737475878783,-344.602991,0.00021095,2]
[349881652,1737475878793,-500.0,0.00021095,2]
[349881653,1737475878804,-500.0,0.00021095,2]
[349881654,1737475878816,-2220.19,0.00021095,2]
[349881655,1737475878826,-500.0,0.00021095,2]
[349881656,1737475878835,-1566.92,0.00021095,2]
[349881657,1737475878846,-3463.88,0.00021095,2]
[349881658,1737475878857,-3439.97,0.00021095,2]
[349881659,1737475878867,-635.08928762,0.00021095,2]
[349881660,1737475878878,-500.0,0.00021095,2]
[349881661,1737475878888,-1334.36,0.00021095,2]
[349881662,1737475878898,-2915.12,0.00021095,2]
[349881663,1737475878908,-1921.68,0.00021095,2]
[349881664,1737475878918,-1294.29,0.00021095,2]
[349881665,1737475878929,-1567.67,0.00021095,2]
[349881666,1737475878939,-663.86,0.00021095,2]
[349881667,1737475878949,-1643.03,0.00021095,2]
[349881668,1737475878959,-1240.69,0.00021095,2]
[349881669,1737475878969,-622.35,0.00021095,2]
[349881670,1737475878980,-500.0,0.00021095,2]
[349881671,1737475878989,-1130.45,0.00021095,2]
[349881672,1737475878999,-250.125144,0.00021095,2]
[349881673,1737475879010,-931.92,0.00021095,2]
[349881674,1737475879019,-1812.77,0.00021095,2]
[349881675,1737475879031,-1151.69,0.00021095,2]
[349881676,1737475879041,-250.125144,0.00021095,2]
[349881677,1737475879051,-2024.14,0.00021095,2]
[349881678,1737475879061,-6176.7,0.00021095,2]
[349881679,1737475879071,-500.0,0.00021095,2]
[349881680,1737475879082,-151.0,0.00021095,2]
[349881681,1737475879092,-648.2,0.00021095,2]
[349881682,1737475879102,-1172.98,0.00021095,2]
[349881683,1737475879112,-2700.92,0.00021095,2]
[349881684,1737475879123,-500.0,0.00021095,2]
[349881685,1737475879133,-1124.3,0.00021095,2]
[349881686,1737475879144,-2422.11,0.00021095,2]
[349881687,1737475879155,-744.53,0.00021095,2]
[349881688,1737475879166,-1761.76,0.00021095,2]
[349881689,1737475879177,-5036.59,0.00021095,2]
[349881690,1737475879188,-820.74,0.00021095,2]
[349881691,1737475879198,-1108.09,0.00021095,2]
[349881692,1737475879209,-151.0,0.00021095,2]
[349881693,1737475879220,-1138.49,0.00021095,2]
[349881694,1737475879230,-709.86,0.00021095,2]
[349881695,1737475879240,-2383.66,0.00021095,2]
[349881696,1737475879251,-882.47,0.00021095,2]
[349881697,1737475879261,-500.0,0.00021095,2]
[349881698,1737475879272,-848.97,0.00021095,2]
[349881699,1737475879284,-500.0,0.00021095,2]
[349881700,1737475879294,-500.0,0.00021095,2]
[349881701,1737475879304,-693.82,0.00021095,2]
[349881702,1737475879313,-500.0,0.00021095,2]
[349881703,1737475879323,-1534.92,0.00021095,2]
[349881704,1737475879334,-557.69,0.00021095,2]
[349881705,1737475879344,-2099.21,0.00021095,2]
[349881706,1737475879355,-1760.35,0.00021095,2]
[349881707,1737475879367,-953.39,0.00021095,2]
[349881708,1737475879378,-500.0,0.00021095,2]
[349881709,1737475879389,-500.0,0.00021095,2]
[349881710,1737475879399,-1525.72,0.00021095,2]
[349881711,1737475879409,-4340.86,0.00021095,2]
[349881712,1737475879419,-677.18,0.00021095,2]
[349881713,1737475879429,-590.27,0.00021095,2]
[349881714,1737475879439,-513.99,0.00021095,2]
[349881715,1737475879448,-500.0,0.00021095,2]
[349881716,1737475879458,-500.0,0.00021095,2]
[349881717,1737475879467,-500.0,0.00021095,2]
[349881718,1737475879477,-500.0,0.00021095,2]
[349881719,1737475879486,-849.56,0.00021095,2]
[349881720,1737475879495,-500.0,0.00021095,2]
[349881721,1737475879505,-500.0,0.00021095,2]
[349881722,1737475879515,-2441.3,0.00021095,2]
[349881723,1737475879525,-500.0,0.00021095,2]
[349881724,1737475879536,-500.0,0.00021095,2]
[349881725,1737475879546,-671.34,0.00021095,2]
[349881726,1737475879555,-1268.14,0.00021095,2]
[349881727,1737475879566,-536.19,0.00021095,2]
[349881728,1737475879576,-376.33826723,0.00021107,2]
[349881729,1737475879586,-150.0,0.00021108,2]
[349881730,1737475879595,-486.97,0.00021108,2]
[349881731,1737475879604,-376.33826723,0.00021141,2]
[349881732,1737475879614,-237.14962228,0.00021142,2]
[349881733,1737475879624,-150.0,0.00021145,2]
[349881734,1737475879633,-150.0,0.00021163,2]
[349881735,1737475879643,-1051.05,0.00021163,7]
[349881736,1737475879652,-1051.05,0.00021163,7]
[349881737,1737475879661,-376.33826723,0.00021176,2]
[349881738,1737475879671,-3133.87135329,0.00021178,2]
[349881739,1737475879680,-150.0,0.00021187,2]
[349881740,1737475879690,-150.0,0.00021192,2]
[349881741,1737475879699,-150.0,0.00021192,2]
[349881742,1737475879708,-150.0,0.00021196,2]
[349881743,1737475879718,-8562.78210843,0.000212,2]
[349881744,1737475879728,-150.0,0.00021203,2]
[349881745,1737475879737,-150.0,0.00021203,2]
[349881746,1737475879747,-233.118,0.00021203,2]
[349881747,1737475879757,-150.979,0.00021203,2]
[349881748,1737475879770,-150.0,0.00021203,2]
[349881749,1737475879783,-165.846,0.00021203,2]
[349881750,1737475879793,-150.0,0.00021203,2]
[349881751,1737475879806,-150.116,0.00021203,2]
[349881752,1737475879818,-150.0,0.00021203,2]
[349881753,1737475879828,-150.0,0.00021203,2]
[349881754,1737475879838,-150.0,0.00021203,2]
[349881755,1737475879849,-150.0,0.00021203,2]
[349881756,1737475879861,-1269.0,0.00021203,2]
[349881757,1737475879871,-2018.0,0.00021203,2]
[349881758,1737475879881,-636.0,0.00021203,2]
[349881759,1737475879892,-581.396,0.00021203,2]
[349881760,1737475879903,-219.286,0.00021203,2]
[349881761,1737475879913,-1864.0,0.00021203,2]
[349881762,1737475879922,-907.0,0.00021203,2]
[349881763,1737475879933,-781.0,0.00021203,2]
[349881764,1737475879942,-2948.0,0.00021203,2]
[349881765,1737475879952,-1261.0,0.00021203,2]
[349881766,1737475879962,-150.665,0.00021203,2]
[349881767,1737475879972,-552.834,0.00021203,2]
[349881768,1737475879982,-3984.0,0.00021203,2]
[349881769,1737475879991,-3902.0,0.00021203,2]
[349881770,1737475880002,-152.519,0.00021203,2]
[349881771,1737475880012,-1106.0,0.00021203,2]
[349881772,1737475880022,-376.33826723,0.0002121,2]
[349881773,1737475880036,-150.0,0.00021217,2]
[349881774,1737475880046,-500.0,0.00021217,2]
[349881775,1737475880056,-246.48497191,0.00021217,2]
[349881776,1737475880066,-743.45,0.00021231,2]
[349881777,1737475880076,-500.0,0.00021244,2]
[349881778,1737475880087,-376.33826723,0.00021245,2]
[349881779,1737475880097,-150.0,0.00021248,2]
[349881780,1737475880108,-150.0,0.00021249,2]
[349881781,1737475880119,-150.0,0.00021259,2]
[349881782,1737475880131,-787.36,0.00021269,2]
[349881783,1737475880141,-500.0,0.00021269,2]
[349881784,1737475880151,-910.89,0.00021269,2]
[349881785,1737475880162,-500.0,0.00021269,2]
[349881786,1737475880173,-929.74,0.00021269,2]
[349881787,1737475880184,-917.84,0.00021269,2]
[349881788,1737475880195,-902.25,0.00021269,2]
[349881789,1737475880205,-1135.44,0.00021269,2]
[349881790,1737475880215,-810.0,0.00021269,2]
[349881791,1737475880225,-1600.98,0.00021269,2]
[349881792,1737475880235,-4064.87,0.00021269,2]
[349881793,1737475880245,-897.93,0.00021269,2]
[349881794,1737475880256,-673.81,0.00021269,2]
[349881795,1737475880266,-1271.26,0.00021269,2]
[349881796,1737475880281,-500.0,0.00021269,2]
[349881797,1737475880291,-1174.41,0.00021269,2]
[349881798,1737475880301,-1337.39,0.00021269,2]
[349881799,1737475880311,-1158.29,0.00021269,2]
[349881800,1737475880320,-1252.35,0.00021269,2]
[349881801,1737475880330,-1416.74,0.00021269,2]
[349881802,1737475880340,-150.0,0.00021271,2]
[349881803,1737475880350,-572.2844262,0.00021272,2]
[349881804,1737475880360,-376.33826723,0.00021279,2]
[349881805,1737475880370,-5070.76774557,0.0002129,6]
[349881806,1737475880381,-179.59117281,0.0002129,2]
[349881807,1737475880391,-720851.44,0.000213,15]
[349881808,1737475880402,-151.0,0.000213,2]
[349881809,1737475880411,-151.0,0.000213,2]
[349881810,1737475880421,-151.0,0.000213,2]
[349881811,1737475880431,-151.0,0.000213,2]
[349881812,1737475880440,-151.0,0.000213,2]
[349881813,1737475880450,-327.83,0.000213,15]
[349881814,1737475880460,-151.0,0.000213,2]
[349881815,1737475880471,-152.18502,0.000213,2]
[349881816,1737475880481,-156.3245,0.000213,2]
[349881817,1737475880490,-1062404.28,0.000213,15]
[349881818,1737475880501,-151.0,0.000213,2]
[349881819,1737475880510,-151.0,0.000213,2]
[349881820,1737475880520,-151.0,0.000213,2]
[349881821,1737475880533,-151.0,0.000213,2]
[349881822,1737475880542,-151.0,0.000213,2]
[349881823,1737475880551,-151.0,0.000213,2]
[349881824,1737475880561,-151.0,0.000213,2]
[349881825,1737475880571,-151.657549,0.000213,2]
[349881826,1737475880581,-151.662169,0.000213,2]
[349881827,1737475880591,-151.0,0.000213,2]
[349881828,1737475880601,-151.0,0.000213,2]
[349881829,1737475880610,-820.239689,0.000213,2]
[349881830,1737475880620,-820.239689,0.000213,2]
[349881831,1737475880629,-820.239689,0.000213,2]
[349881832,1737475880638,-820.239689,0.000213,2]
[349881833,1737475880648,-229.838024,0.000213,2]
[349881834,1737475880657,-229.838024,0.000213,2]
[349881835,1737475880667,-229.838024,0.000213,2]
[349881836,1737475880677,-229.838024,0.000213,2]
[349881837,1737475880687,-151.0,0.000213,2]
[349881838,1737475880696,-151.0,0.000213,2]
[349881839,1737475880706,-151.0,0.000213,2]
[349881840,1737475880716,-224.854793,0.000213,2]
[349881841,1737475880726,-151.0,0.000213,2]
[349881842,1737475880735,-151.0,0.000213,2]
[349881843,1737475880744,-752.030053,0.000213,2]
[349881844,1737475880755,-752.030053,0.000213,2]
[349881845,1737475880771,-752.030053,0.000213,2]
[349881846,1737475880784,-752.030053,0.000213,2]
[349881847,1737475880794,-151.0,0.000213,2]
[349881848,1737475880804,-151.0,0.000213,2]
[349881849,1737475880815,-151.0,0.000213,2]
[349881850,1737475880825,-151.0,0.000213,2]
[349881851,1737475880872,-490.744439,0.000213,2]
[349881852,1737475880883,-490.744439,0.000213,2]
[349881853,1737475880893,-699.020223,0.000213,2]
[349881854,1737475880902,-699.020223,0.000213,2]
[349881855,1737475880913,-699.020223,0.000213,2]
[349881856,1737475880923,-699.020223,0.000213,2]
[349881857,1737475880933,-151.0,0.000213,2]
[349881858,1737475880943,-151.0,0.000213,2]
[349881859,1737475880952,-164.392577,0.000213,2]
[349881860,1737475880963,-164.392577,0.000213,2]
[349881861,1737475880972,-164.392577,0.000213,2]
[349881862,1737475880982,-164.392577,0.000213,2]
[349881863,1737475880992,-341.496494,0.000213,2]
[349881864,1737475881002,-341.496494,0.000213,2]
[349881865,1737475881011,-341.496494,0.000213,2]
[349881866,1737475881021,-341.496494,0.000213,2]
[349881867,1737475881035,-534.136556,0.000213,2]
[349881868,1737475881045,-534.136556,0.000213,2]
[349881869,1737475881055,-534.136556,0.000213,2]
[349881870,1737475881064,-534.136556,0.000213,2]
[349881871,1737475881074,-151.0,0.000213,2]
[349881872,1737475881084,-165.357104,0.000213,2]
[349881873,1737475881093,-151.0,0.000213,2]
[349881874,1737475881102,-151.0,0.000213,2]
[349881875,1737475881113,-156.096369,0.000213,2]
[349881876,1737475881122,-151.0,0.000213,2]
[349881877,1737475881131,-151.0,0.000213,2]
[349881878,1737475881141,-2646.224274,0.000213,2]
[349881879,1737475881150,-2646.224274,0.000213,2]
[349881880,1737475881160,-2646.224274,0.000213,2]
[349881881,1737475881170,-2646.224274,0.000213,2]
[349881882,1737475881179,-226.948823,0.000213,2]
[349881883,1737475881189,-226.948823,0.000213,2]
[349881884,1737475881199,-226.948823,0.000213,2]
[349881885,1737475881209,-226.948823,0.000213,2]
[349881886,1737475881218,-161.031075,0.000213,2]
[349881887,1737475881228,-344.602991,0.000213,2]
[349881888,1737475881236,-344.602991,0.000213,2]
[349881889,1737475881246,-344.602991,0.000213,2]
[349881890,1737475881256,-344.602991,0.000213,2]
[349881891,1737475881266,-250.125144,0.000213,2]
[349881892,1737475881275,-250.125144,0.000213,2]
[349881893,1737475881291,-250.125144,0.000213,2]
[349881894,1737475881301,-250.125144,0.000213,2]
[349881895,1737475881313,-151.0,0.000213,2]
[349881896,1737475881323,-155.730886,0.000213,2]
[349881897,1737475881335,-151.0,0.000213,2]
[349881898,1737475881346,-151.0,0.000213,2]
[349881899,1737475881358,-150.0,0.00021301,2]
[349881900,1737475881369,-4939.84776378,0.00021311,2]
[349881901,1737475881379,-356.83397811,0.00021311,2]
[349881902,1737475881390,-973.8215439,0.00021311,2]
[349881903,1737475881401,-5146.75447676,0.00021311,2]
[349881904,1737475881412,-376.33826723,0.00021314,2]
[349881905,1737475881423,-1212.96392688,0.00021322,2]
[349881906,1737475881434,-1107.5063506,0.00021322,2]
[349881907,1737475881445,-584.60113848,0.00021322,2]
[349881908,1737475881455,-150.0,0.00021335,2]
[349881909,1737475881465,-150.0,0.00021343,2]
[349881910,1737475881475,-150.0,0.00021344,2]
[349881911,1737475881485,-376.33826723,0.00021348,2]
[349881912,1737475881495,-183.31,0.0002135,2]
[349881913,1737475881505,-743.45,0.00021368,2]
[349881914,1737475881515,-500.0,0.00021369,2]
[349881915,1737475881524,-522.67492848,0.00021369,2]
[349881916,1737475881541,-699.31,0.00021369,2]
[349881917,1737475881550,-500.0,0.00021369,2]
[349881918,1737475881560,-349.96070651,0.00021369,2]
[349881919,1737475881570,-522.61,0.00021369,2]
[349881920,1737475881580,-500.0,0.00021369,2]
[349881921,1737475881589,-500.0,0.00021369,2]
[349881922,1737475881599,-850.12,0.00021369,2]
[349881923,1737475881609,-500.0,0.00021369,2]
[349881924,1737475881619,-500.0,0.00021369,2]
[349881925,1737475881628,-500.0,0.00021369,2]
[349881926,1737475881638,-1704.94,0.00021369,2]
[349881927,1737475881648,-500.0,0.00021369,2]
[349881928,1737475881658,-500.0,0.00021369,2]
[349881929,1737475881668,-500.0,0.00021369,2]
[349881930,1737475881678,-500.0,0.00021369,2]
[349881931,1737475881687,-500.0,0.00021369,2]
[349881932,1737475881698,-500.0,0.00021369,2]
[349881933,1737475881709,-500.0,0.00021369,2]
[349881934,1737475881718,-584.12,0.00021369,2]
[349881935,1737475881728,-500.0,0.00021369,2]
[349881936,1737475881737,-500.0,0.00021369,2]
[349881937,1737475881747,-500.0,0.00021369,2]
[349881938,1737475881757,-500.0,0.00021369,2]
[349881939,1737475881771,-681.6,0.00021369,2]
[349881940,1737475881784,-500.0,0.00021369,2]
[349881941,1737475881794,-500.0,0.00021369,2]
[349881942,1737475881803,-500.0,0.00021369,2]
[349881943,1737475881816,-555.71,0.00021369,2]
[349881944,1737475881825,-831.08,0.00021369,2]
[349881945,1737475881836,-500.0,0.00021369,2]
[349881946,1737475881846,-525.73443295,0.00021369,2]
[349881947,1737475881855,-500.0,0.00021369,2]
[349881948,1737475881865,-500.0,0.00021369,2]
[349881949,1737475881874,-672.81,0.00021369,2]
[349881950,1737475881884,-500.0,0.00021369,2]
[349881951,1737475881894,-707.66,0.00021369,2]
[349881952,1737475881904,-500.0,0.00021369,2]
[349881953,1737475881913,-500.0,0.00021369,2]
[349881954,1737475881922,-500.0,0.00021369,2]
[349881955,1737475881932,-500.0,0.00021369,2]
[349881956,1737475881942,-500.0,0.00021369,2]
[349881957,1737475881951,-667.353456,0.00021369,2]
[349881958,1737475881961,-500.0,0.00021369,2]
[349881959,1737475881971,-500.0,0.00021369,2]
[349881960,1737475881982,-500.0,0.00021369,2]
[349881961,1737475881992,-370.03752503,0.00021369,2]
[349881962,1737475882001,-500.0,0.00021369,2]
[349881963,1737475882011,-500.0,0.00021369,2]
[349881964,1737475882020,-500.0,0.00021369,2]
[349881965,1737475882033,-500.0,0.00021369,2]
[349881966,1737475882042,-500.0,0.00021369,2]
[349881967,1737475882052,-500.0,0.00021369,2]
[349881968,1737475882061,-500.0,0.00021369,2]
[349881969,1737475882071,-500.0,0.00021369,2]
[349881970,1737475882080,-500.0,0.00021369,2]
[349881971,1737475882090,-610.88,0.00021369,2]
[349881972,1737475882100,-323.97680386,0.00021369,2]
[349881973,1737475882109,-737.179408,0.00021369,2]
[349881974,1737475882118,-500.0,0.00021369,2]
[349881975,1737475882127,-500.0,0.00021369,2]
[349881976,1737475882137,-565.45,0.00021369,2]
[349881977,1737475882146,-500.0,0.00021369,2]
[349881978,1737475882157,-500.0,0.00021369,2]
[349881979,1737475882166,-500.0,0.00021369,2]
[349881980,1737475882176,-500.0,0.00021369,2]
[349881981,1737475882186,-500.0,0.00021369,2]
[349881982,1737475882196,-500.0,0.00021369,2]
[349881983,1737475882205,-560.25,0.00021369,2]
[349881984,1737475882214,-500.0,0.00021369,2]
[349881985,1737475882223,-500.0,0.00021369,2]
[349881986,1737475882233,-575.37,0.00021369,2]
[349881987,1737475882242,-500.0,0.00021369,2]
[349881988,1737475882251,-239.76317058,0.00021369,2]
[349881989,1737475882261,-500.0,0.00021369,2]
[349881990,1737475882271,-500.0,0.00021369,2]
[349881991,1737475882283,-500.0,0.00021369,2]
[349881992,1737475882292,-621.55,0.00021369,2]